[Event "*** MasterClass Titled Tuesday Blitz"]
[Site "Chess.com"]
[Date "2017.09.05"]
[Round "5"]
[White "TigranLPetrosyan"]
[Black "Alex_Molchanov"]
[Result "1-0"]
[WhiteElo "2727"]
[BlackElo "2502"]
[TimeControl "180+2"]
[EndTime "14:16:07 PDT"]
[Termination "TigranLPetrosyan won by checkmate"]

1. d4 {[%clk 0:02:55.6]} 1... Nf6 {[%clk 0:03:00.5]} 2. Nf3 {[%clk 0:02:57.5]}
2... e6 {[%clk 0:03:01.4]} 3. Bf4 {[%clk 0:02:59]} 3... c5 {[%clk 0:03:00.5]} 4.
e3 {[%clk 0:03:00.1]} 4... b6 {[%clk 0:03:00.8]} 5. Be2 {[%clk 0:02:58.9]} 5...
Be7 {[%clk 0:02:57.5]} 6. O-O {[%clk 0:03:00.2]} 6... O-O {[%clk 0:02:59]} 7. h3
{[%clk 0:03:01.5]} 7... Ba6 {[%clk 0:02:56.4]} 8. c4 {[%clk 0:02:59.5]} 8... d5
{[%clk 0:02:52.6]} 9. Nbd2 {[%clk 0:02:44.3]} 9... Nc6 {[%clk 0:02:41.5]} 10.
Rc1 {[%clk 0:02:44.1]} 10... cxd4 {[%clk 0:02:40]} 11. exd4 {[%clk 0:02:38.5]}
11... Rc8 {[%clk 0:02:32.2]} 12. a3 {[%clk 0:02:33.7]} 12... dxc4 {[%clk
0:02:26.7]} 13. Nxc4 {[%clk 0:02:33.1]} 13... Nd5 {[%clk 0:02:21.3]} 14. Bg3
{[%clk 0:02:34.1]} 14... Bxc4 {[%clk 0:02:12]} 15. Rxc4 {[%clk 0:02:30.1]} 15...
Bf6 {[%clk 0:02:03.8]} 16. Qa4 {[%clk 0:02:22.9]} 16... Na5 {[%clk 0:01:57.5]}
17. Rxc8 {[%clk 0:02:18.7]} 17... Qxc8 {[%clk 0:01:58.2]} 18. Ne5 {[%clk
0:02:15.7]} 18... Bxe5 {[%clk 0:01:37.5]} 19. dxe5 {[%clk 0:01:45]} 19... Rd8
{[%clk 0:01:21.1]} 20. Qe4 {[%clk 0:01:37.3]} 20... Nc6 {[%clk 0:00:51.1]} 21.
Rc1 {[%clk 0:01:31.9]} 21... Qb7 {[%clk 0:00:49.9]} 22. Bd3 {[%clk 0:01:27.5]}
22... g6 {[%clk 0:00:48.7]} 23. Bh4 {[%clk 0:01:24.2]} 23... Rc8 {[%clk
0:00:49.8]} 24. Rd1 {[%clk 0:01:16.9]} 24... Nce7 {[%clk 0:00:40.9]} 25. g4
{[%clk 0:01:16.3]} 25... Qc7 {[%clk 0:00:33]} 26. Bg5 {[%clk 0:01:08]} 26... Qc5
{[%clk 0:00:30]} 27. Bh6 {[%clk 0:00:54.1]} 27... Nc6 {[%clk 0:00:29]} 28. Rc1
{[%clk 0:00:53.5]} 28... Qe7 {[%clk 0:00:12.8]} 29. Bb5 {[%clk 0:00:54]} 29...
Qb7 {[%clk 0:00:13.2]} 30. Re1 {[%clk 0:00:33.4]} 30... Nce7 {[%clk 0:00:14.1]}
31. Qf3 {[%clk 0:00:31.7]} 31... Qc7 {[%clk 0:00:11.7]} 32. Bd3 {[%clk
0:00:30.2]} 32... Qb7 {[%clk 0:00:10.2]} 33. Be4 {[%clk 0:00:30.9]} 33... Qc7
{[%clk 0:00:11.4]} 34. Bd3 {[%clk 0:00:28.5]} 34... Qb7 {[%clk 0:00:12]} 35. Re2
{[%clk 0:00:29.3]} 35... Qc7 {[%clk 0:00:12.7]} 36. Ba6 {[%clk 0:00:30.2]} 36...
Rd8 {[%clk 0:00:11.8]} 37. Bd3 {[%clk 0:00:31.7]} 37... Rc8 {[%clk 0:00:10.7]}
38. Kg2 {[%clk 0:00:32.6]} 38... Qb7 {[%clk 0:00:11.9]} 39. Be4 {[%clk
0:00:32.3]} 39... Qc7 {[%clk 0:00:13.1]} 40. Bb1 {[%clk 0:00:33.3]} 40... Rd8
{[%clk 0:00:13.8]} 41. Rc2 {[%clk 0:00:33.1]} 41... Qb7 {[%clk 0:00:15.1]} 42.
Ba2 {[%clk 0:00:33.9]} 42... Rc8 {[%clk 0:00:16]} 43. Rd2 {[%clk 0:00:34.9]}
43... Rd8 {[%clk 0:00:15.7]} 44. Rd4 {[%clk 0:00:35.9]} 44... Qc6 {[%clk
0:00:15.7]} 45. Bb1 {[%clk 0:00:36.1]} 45... Qc5 {[%clk 0:00:16.8]} 46. Rd3
{[%clk 0:00:34.8]} 46... Qc6 {[%clk 0:00:17]} 47. Kh2 {[%clk 0:00:34.4]} 47...
Qc7 {[%clk 0:00:17.8]} 48. Qe4 {[%clk 0:00:35.6]} 48... Nf6 {[%clk 0:00:17.2]}
49. Rxd8+ {[%clk 0:00:35.2]} 49... Qxd8 {[%clk 0:00:18.5]} 50. exf6 {[%clk
0:00:36.6]} 50... Nd5 {[%clk 0:00:18.6]} 51. Qe5 {[%clk 0:00:34]} 51... Nxf6
{[%clk 0:00:18.5]} 52. Bg5 {[%clk 0:00:34.4]} 52... Qd1 {[%clk 0:00:14.9]} 53.
Bxf6 {[%clk 0:00:34.6]} 53... Qxb1 {[%clk 0:00:15.7]} 54. Qb8# {[%clk
0:00:35.5]} 1-0

[Event "*** MasterClass Titled Tuesday Blitz"]
[Site "Chess.com"]
[Date "2017.09.05"]
[Round "5"]
[White "popov_m"]
[Black "Indianlad"]
[Result "1-0"]
[WhiteElo "2434"]
[BlackElo "2616"]
[TimeControl "180+2"]
[EndTime "14:16:15 PDT"]
[Termination "popov_m won by resignation"]

1. d4 {[%clk 0:03:01.9]} 1... d5 {[%clk 0:03:00.5]} 2. Bf4 {[%clk 0:02:53.1]}
2... c5 {[%clk 0:02:59]} 3. e3 {[%clk 0:02:53.2]} 3... Nc6 {[%clk 0:02:57.5]} 4.
Nf3 {[%clk 0:02:49.4]} 4... cxd4 {[%clk 0:02:56]} 5. exd4 {[%clk 0:02:50.2]}
5... Bg4 {[%clk 0:02:56.2]} 6. c3 {[%clk 0:02:49.5]} 6... e6 {[%clk 0:02:57]} 7.
Nbd2 {[%clk 0:02:49]} 7... Bd6 {[%clk 0:02:58.1]} 8. Bxd6 {[%clk 0:02:45.2]}
8... Qxd6 {[%clk 0:02:59.9]} 9. Be2 {[%clk 0:02:46.8]} 9... Nge7 {[%clk
0:03:00.5]} 10. h3 {[%clk 0:02:48.3]} 10... Bh5 {[%clk 0:03:00.2]} 11. O-O
{[%clk 0:02:49.9]} 11... O-O {[%clk 0:03:00.3]} 12. Re1 {[%clk 0:02:51.3]} 12...
Rab8 {[%clk 0:03:00.3]} 13. a4 {[%clk 0:02:36.3]} 13... a6 {[%clk 0:03:00.7]}
14. Nb3 {[%clk 0:02:36.9]} 14... Rfc8 {[%clk 0:02:59.6]} 15. Nc5 {[%clk
0:02:36.9]} 15... Qc7 {[%clk 0:02:51]} 16. Ne5 {[%clk 0:02:27.7]} 16... Bxe2
{[%clk 0:02:46.4]} 17. Qxe2 {[%clk 0:02:29.6]} 17... Nxe5 {[%clk 0:02:45.6]} 18.
Qxe5 {[%clk 0:02:30.4]} 18... Qxe5 {[%clk 0:02:45.6]} 19. Rxe5 {[%clk
0:02:32.3]} 19... Nf5 {[%clk 0:02:46.8]} 20. Nd7 {[%clk 0:02:30.2]} 20... Nd6
{[%clk 0:02:47.7]} 21. Nxb8 {[%clk 0:02:30.4]} 21... Rxb8 {[%clk 0:02:49.2]} 22.
b3 {[%clk 0:02:17.5]} 22... Rc8 {[%clk 0:02:49.1]} 23. Re3 {[%clk 0:02:17.9]}
23... Kf8 {[%clk 0:02:47.8]} 24. Rc1 {[%clk 0:02:16.7]} 24... Ke7 {[%clk
0:02:42]} 25. f3 {[%clk 0:02:15.5]} 25... h5 {[%clk 0:02:38.9]} 26. Kf2 {[%clk
0:02:16]} 26... Nf5 {[%clk 0:02:39]} 27. Rd3 {[%clk 0:02:15.4]} 27... h4 {[%clk
0:02:31.7]} 28. c4 {[%clk 0:02:12.9]} 28... Kf6 {[%clk 0:02:31.8]} 29. Rcc3
{[%clk 0:02:06.1]} 29... dxc4 {[%clk 0:02:20.3]} 30. bxc4 {[%clk 0:02:01.1]}
30... Rd8 {[%clk 0:02:17.8]} 31. Rb3 {[%clk 0:02:00.7]} 31... Nxd4 {[%clk
0:02:14.8]} 32. Rxb7 {[%clk 0:02:00]} 32... e5 {[%clk 0:02:16.2]} 33. Rb6+
{[%clk 0:01:48.3]} 33... Kf5 {[%clk 0:02:16.1]} 34. Rxa6 {[%clk 0:01:49.3]}
34... Rb8 {[%clk 0:02:14.9]} 35. Rd2 {[%clk 0:01:49.7]} 35... Rb3 {[%clk
0:02:15.3]} 36. Ra7 {[%clk 0:01:47]} 36... Ke6 {[%clk 0:02:07.3]} 37. a5 {[%clk
0:01:43.6]} 37... g5 {[%clk 0:02:01.9]} 38. a6 {[%clk 0:01:38.1]} 38... Ra3
{[%clk 0:02:02.8]} 39. Ra8 {[%clk 0:01:37.2]} 39... Kf5 {[%clk 0:02:01.2]} 40.
c5 {[%clk 0:01:32.1]} 40... Kf4 {[%clk 0:02:01.2]} 41. Rb2 {[%clk 0:00:32.2]}
41... g4 {[%clk 0:01:53.4]} 42. hxg4 {[%clk 0:00:32]} 42... h3 {[%clk 0:01:52]}
43. g3+ {[%clk 0:00:29.3]} 43... Kg5 {[%clk 0:01:52.2]} 44. a7 {[%clk
0:00:28.7]} 44... Rxf3+ {[%clk 0:01:50.1]} 45. Kg1 {[%clk 0:00:25.8]} 45...
Rxg3+ {[%clk 0:01:46.5]} 46. Kh1 {[%clk 0:00:26]} 46... Nf3 {[%clk 0:01:43]} 47.
Rg8+ {[%clk 0:00:16.6]} 47... Kh6 {[%clk 0:01:03.7]} 48. Rb1 {[%clk 0:00:11.7]}
48... h2 {[%clk 0:00:56.2]} 49. Rh8+ {[%clk 0:00:12.9]} 49... Kg5 {[%clk
0:00:54]} 50. Rxh2 {[%clk 0:00:14.5]} 50... Nxh2 {[%clk 0:00:55.2]} 51. a8=Q
{[%clk 0:00:15.1]} 51... Nf3 {[%clk 0:00:56.7]} 52. Qe4 {[%clk 0:00:12.6]} 52...
Kh4 {[%clk 0:00:50.6]} 53. g5+ {[%clk 0:00:09.9]} 53... Kh3 {[%clk 0:00:48.3]}
54. Qf5+ {[%clk 0:00:10.6]} 54... Kh4 {[%clk 0:00:50.2]} 55. Rb4+ {[%clk
0:00:11.1]} 55... Kh5 {[%clk 0:00:48.8]} 56. Qxf7+ {[%clk 0:00:08.2]} 56... Kxg5
{[%clk 0:00:48.4]} 57. Qg7+ {[%clk 0:00:09.4]} 1-0

[Event "*** MasterClass Titled Tuesday Blitz"]
[Site "Chess.com"]
[Date "2017.09.05"]
[Round "5"]
[White "TomsKantans"]
[Black "belisarius64"]
[Result "0-1"]
[WhiteElo "2413"]
[BlackElo "2332"]
[TimeControl "180+2"]
[EndTime "14:16:32 PDT"]
[Termination "belisarius64 won on time"]

1. e4 {[%clk 0:03:01.9]} 1... c5 {[%clk 0:03:00]} 2. Nf3 {[%clk 0:03:02.4]} 2...
e6 {[%clk 0:03:01.4]} 3. d4 {[%clk 0:03:02.7]} 3... cxd4 {[%clk 0:03:03.3]} 4.
Nxd4 {[%clk 0:03:04.3]} 4... Nc6 {[%clk 0:03:01.4]} 5. Nc3 {[%clk 0:03:03.9]}
5... Qc7 {[%clk 0:03:02.7]} 6. Be3 {[%clk 0:03:02.3]} 6... a6 {[%clk 0:03:03.6]}
7. Qf3 {[%clk 0:03:02.4]} 7... Bd6 {[%clk 0:02:58.8]} 8. O-O-O {[%clk
0:03:00.2]} 8... Be5 {[%clk 0:03:00.2]} 9. g3 {[%clk 0:03:00.9]} 9... Nge7
{[%clk 0:02:57.1]} 10. Qe2 {[%clk 0:03:01.6]} 10... b5 {[%clk 0:02:46]} 11. f4
{[%clk 0:02:55.4]} 11... Bxd4 {[%clk 0:02:45.9]} 12. Bxd4 {[%clk 0:02:57.3]}
12... Nxd4 {[%clk 0:02:47.4]} 13. Rxd4 {[%clk 0:02:58.7]} 13... Bb7 {[%clk
0:02:49]} 14. Bg2 {[%clk 0:02:45.2]} 14... O-O {[%clk 0:02:48.6]} 15. Rhd1
{[%clk 0:02:43.5]} 15... Rfd8 {[%clk 0:02:49.5]} 16. a3 {[%clk 0:02:30.5]} 16...
Rac8 {[%clk 0:02:47]} 17. Qd2 {[%clk 0:02:01.7]} 17... d5 {[%clk 0:02:27.3]} 18.
exd5 {[%clk 0:02:00.1]} 18... exd5 {[%clk 0:02:21.8]} 19. Rd3 {[%clk 0:01:39.5]}
19... Qc5 {[%clk 0:02:22.1]} 20. Kb1 {[%clk 0:01:36.2]} 20... a5 {[%clk
0:02:22]} 21. Qe3 {[%clk 0:01:10]} 21... d4 {[%clk 0:02:15.8]} 22. Rxd4 {[%clk
0:01:10.4]} 22... Rxd4 {[%clk 0:02:16.8]} 23. Rxd4 {[%clk 0:01:09.6]} 23... Qb6
{[%clk 0:01:45.8]} 24. Qxe7 {[%clk 0:00:48.6]} 24... Bxg2 {[%clk 0:01:39.2]} 25.
Nxb5 {[%clk 0:00:29.9]} 25... Bc6 {[%clk 0:01:13.8]} 26. Nd6 {[%clk 0:00:02]}
26... Qxd4 {[%clk 0:01:01.9]} 27. Nxc8 {[%clk 0:00:03]} 27... Qd1+ {[%clk
0:01:02.9]} 28. Ka2 {[%clk 0:00:04.2]} 28... Bd5+ {[%clk 0:01:04.4]} 29. b3
{[%clk 0:00:05.4]} 29... Qxc2+ {[%clk 0:01:05.1]} 30. Ka1 {[%clk 0:00:06.8]}
30... Qxc8 {[%clk 0:01:05.5]} 31. Kb2 {[%clk 0:00:07.2]} 31... h6 {[%clk
0:01:00.3]} 32. Qe5 {[%clk 0:00:06.3]} 32... Qb7 {[%clk 0:00:59.4]} 33. Qc3
{[%clk 0:00:05.9]} 33... Qb6 {[%clk 0:00:57.9]} 34. Qd3 {[%clk 0:00:05.1]} 34...
Qf2+ {[%clk 0:00:57.3]} 35. Kc3 {[%clk 0:00:06.2]} 35... Be6 {[%clk 0:00:57.8]}
36. Qd8+ {[%clk 0:00:05.7]} 36... Kh7 {[%clk 0:00:59]} 37. Qxa5 {[%clk
0:00:07.5]} 37... Qxh2 {[%clk 0:00:58.8]} 38. Qb5 {[%clk 0:00:02.7]} 38... Qxg3+
{[%clk 0:00:59.7]} 39. Kb2 {[%clk 0:00:04.1]} 39... Qxf4 {[%clk 0:01:00.6]} 40.
a4 {[%clk 0:00:05.5]} 40... Qd2+ {[%clk 0:00:57.2]} 41. Ka3 {[%clk 0:00:06.4]}
41... Qd6+ {[%clk 0:00:48.1]} 42. Kb2 {[%clk 0:00:07.4]} 42... g5 {[%clk
0:00:48.6]} 43. a5 {[%clk 0:00:07.8]} 43... Bd5 {[%clk 0:00:47.4]} 44. a6 {[%clk
0:00:06.9]} 44... g4 {[%clk 0:00:37.2]} 45. Qd3+ {[%clk 0:00:04.9]} 45... Kg8
{[%clk 0:00:31.1]} 46. a7 {[%clk 0:00:04.6]} 46... Qf6+ {[%clk 0:00:30.7]} 47.
Kc1 {[%clk 0:00:02.4]} 47... Qf4+ {[%clk 0:00:29.3]} 48. Kb2 {[%clk 0:00:02.5]}
48... Qf2+ {[%clk 0:00:30.2]} 49. Kb1 {[%clk 0:00:03.2]} 49... Qxa7 {[%clk
0:00:29.7]} 50. Qxd5 {[%clk 0:00:03.8]} 50... Qg1+ {[%clk 0:00:29.9]} 51. Kb2
{[%clk 0:00:03.5]} 51... Qf2+ {[%clk 0:00:31.1]} 52. Ka3 {[%clk 0:00:04.2]}
52... g3 {[%clk 0:00:32.2]} 53. Qd7 {[%clk 0:00:03.8]} 53... g2 {[%clk
0:00:29.5]} 54. Qg4+ {[%clk 0:00:04.3]} 54... Kh7 {[%clk 0:00:27.6]} 55. Qe4+
{[%clk 0:00:05.4]} 55... Kg7 {[%clk 0:00:27.3]} 56. Qg4+ {[%clk 0:00:05.6]}
56... Kf6 {[%clk 0:00:27.3]} 0-1

[Event "*** MasterClass Titled Tuesday Blitz"]
[Site "Chess.com"]
[Date "2017.09.05"]
[Round "5"]
[White "Saitama_Hero"]
[Black "abubakrtagelsir"]
[Result "1-0"]
[WhiteElo "2335"]
[BlackElo "2207"]
[TimeControl "180+2"]
[EndTime "14:16:34 PDT"]
[Termination "Saitama_Hero won by resignation"]

1. d4 {[%clk 0:03:01.9]} 1... d5 {[%clk 0:02:57.1]} 2. c4 {[%clk 0:03:03.1]}
2... c6 {[%clk 0:02:57]} 3. cxd5 {[%clk 0:03:03.4]} 3... cxd5 {[%clk 0:02:56.9]}
4. Nc3 {[%clk 0:02:54.6]} 4... Nf6 {[%clk 0:02:56]} 5. f3 {[%clk 0:02:53.5]}
5... Nc6 {[%clk 0:02:54.3]} 6. e4 {[%clk 0:02:53.3]} 6... e6 {[%clk 0:02:55.5]}
7. e5 {[%clk 0:02:53.5]} 7... Nd7 {[%clk 0:02:54.4]} 8. f4 {[%clk 0:02:55.4]}
8... f5 {[%clk 0:02:53.8]} 9. Nf3 {[%clk 0:02:57.3]} 9... Be7 {[%clk 0:02:53.3]}
10. Be3 {[%clk 0:02:55.7]} 10... O-O {[%clk 0:02:53.7]} 11. Rc1 {[%clk
0:02:55.2]} 11... Qe8 {[%clk 0:02:38.6]} 12. a3 {[%clk 0:02:49.4]} 12... a6
{[%clk 0:02:38.3]} 13. Be2 {[%clk 0:02:46.8]} 13... Na5 {[%clk 0:02:35.9]} 14.
b4 {[%clk 0:02:45.6]} 14... Nc4 {[%clk 0:02:32.5]} 15. Bxc4 {[%clk 0:02:45]}
15... dxc4 {[%clk 0:02:32]} 16. d5 {[%clk 0:02:46.9]} 16... Qg6 {[%clk
0:01:42.5]} 17. dxe6 {[%clk 0:02:42.6]} 17... Qxe6 {[%clk 0:01:30.8]} 18. Qd5
{[%clk 0:02:37.4]} 18... Nb8 {[%clk 0:01:16]} 19. Nd4 {[%clk 0:02:31.4]} 19...
Qxd5 {[%clk 0:01:13.7]} 20. Nxd5 {[%clk 0:02:33.3]} 20... Bd8 {[%clk 0:01:13.2]}
21. e6 {[%clk 0:02:29]} 21... Re8 {[%clk 0:01:12.4]} 22. e7 {[%clk 0:02:24.7]}
22... Rxe7 {[%clk 0:01:03]} 23. Nxe7+ {[%clk 0:02:25]} 23... Bxe7 {[%clk
0:01:03.9]} 24. Rxc4 {[%clk 0:02:25.3]} 24... Nd7 {[%clk 0:01:00.3]} 25. Nxf5
{[%clk 0:02:23.7]} 25... Bf8 {[%clk 0:00:56.6]} 26. Kf2 {[%clk 0:02:14.9]} 26...
Nf6 {[%clk 0:00:57.4]} 27. Nd4 {[%clk 0:02:08.4]} 27... b5 {[%clk 0:00:49.5]}
28. Rc7 {[%clk 0:01:55.1]} 28... Bd6 {[%clk 0:00:48.6]} 29. Rc6 {[%clk
0:01:49.1]} 29... Bb7 {[%clk 0:00:45.4]} 30. Rhc1 {[%clk 0:01:36.9]} 30... Re8
{[%clk 0:00:34.4]} 31. h3 {[%clk 0:01:30.9]} 31... Bxc6 {[%clk 0:00:29.8]} 32.
Rxc6 {[%clk 0:01:32.8]} 32... Ra8 {[%clk 0:00:22.1]} 33. Kf3 {[%clk 0:01:30.3]}
33... Bf8 {[%clk 0:00:22.3]} 34. Ne6 {[%clk 0:01:22]} 34... a5 {[%clk
0:00:21.4]} 35. Nxf8 {[%clk 0:01:03.7]} 35... axb4 {[%clk 0:00:21]} 36. axb4
{[%clk 0:00:55]} 36... Kxf8 {[%clk 0:00:20.3]} 37. Rb6 {[%clk 0:00:45.9]} 37...
Ra3 {[%clk 0:00:16.2]} 38. Rxb5 {[%clk 0:00:45.2]} 38... Rb3 {[%clk 0:00:16.2]}
39. g4 {[%clk 0:00:41.1]} 39... Kf7 {[%clk 0:00:17.4]} 40. g5 {[%clk 0:00:41.6]}
40... Nd7 {[%clk 0:00:16.9]} 41. Rb7 {[%clk 0:00:41.5]} 41... Ke6 {[%clk
0:00:18]} 42. Ke4 {[%clk 0:00:40.7]} 42... Kd6 {[%clk 0:00:18.6]} 43. b5 {[%clk
0:00:31.3]} 43... Rb4+ {[%clk 0:00:16]} 44. Kf5 {[%clk 0:00:23.8]} 44... Rb3
{[%clk 0:00:10.7]} 45. Bd4 {[%clk 0:00:22.4]} 45... g6+ {[%clk 0:00:11.5]} 46.
Ke4 {[%clk 0:00:22.4]} 46... Rxh3 {[%clk 0:00:08.6]} 47. b6 {[%clk 0:00:22.1]}
47... Rb3 {[%clk 0:00:07.2]} 48. Ra7 {[%clk 0:00:22.6]} 48... Nxb6 {[%clk
0:00:07.5]} 49. Rb7 {[%clk 0:00:22.7]} 49... Kc6 {[%clk 0:00:07.1]} 50. Rxb6+
{[%clk 0:00:21.2]} 50... Rxb6 {[%clk 0:00:07.2]} 51. Bxb6 {[%clk 0:00:23.1]}
51... Kxb6 {[%clk 0:00:08.4]} 52. f5 {[%clk 0:00:22.7]} 52... gxf5+ {[%clk
0:00:09]} 53. Kxf5 {[%clk 0:00:24.6]} 53... Kc6 {[%clk 0:00:10.1]} 54. Kf6
{[%clk 0:00:26]} 54... Kd5 {[%clk 0:00:11]} 55. Kg7 {[%clk 0:00:27.1]} 55... Ke6
{[%clk 0:00:11.3]} 56. Kxh7 {[%clk 0:00:28.2]} 1-0

[Event "*** MasterClass Titled Tuesday Blitz"]
[Site "Chess.com"]
[Date "2017.09.05"]
[Round "5"]
[White "Bengalas"]
[Black "jncool68"]
[Result "1-0"]
[WhiteElo "2505"]
[BlackElo "2458"]
[TimeControl "180+2"]
[EndTime "14:16:45 PDT"]
[Termination "Bengalas won by resignation"]

1. d4 {[%clk 0:03:01.9]} 1... Nf6 {[%clk 0:02:59.9]} 2. c4 {[%clk 0:03:02.6]}
2... g6 {[%clk 0:03:00.5]} 3. Nc3 {[%clk 0:03:02.9]} 3... d5 {[%clk 0:03:01.5]}
4. Nf3 {[%clk 0:03:03.7]} 4... Bg7 {[%clk 0:03:01.1]} 5. Bf4 {[%clk 0:03:04.6]}
5... O-O {[%clk 0:03:00]} 6. e3 {[%clk 0:03:05.7]} 6... Be6 {[%clk 0:03:00.6]}
7. c5 {[%clk 0:03:05.8]} 7... b6 {[%clk 0:03:00.4]} 8. b4 {[%clk 0:03:06]} 8...
a5 {[%clk 0:03:00.8]} 9. a3 {[%clk 0:03:06.6]} 9... axb4 {[%clk 0:03:01.1]} 10.
axb4 {[%clk 0:03:07.6]} 10... Rxa1 {[%clk 0:03:01.3]} 11. Qxa1 {[%clk
0:03:08.6]} 11... bxc5 {[%clk 0:02:56.6]} 12. bxc5 {[%clk 0:03:09.1]} 12... c6
{[%clk 0:02:58.1]} 13. h3 {[%clk 0:02:59.6]} 13... Nbd7 {[%clk 0:02:50.2]} 14.
Be2 {[%clk 0:02:45.1]} 14... Bf5 {[%clk 0:02:40.1]} 15. O-O {[%clk 0:02:43.5]}
15... Ne4 {[%clk 0:02:41]} 16. Nxe4 {[%clk 0:02:33.5]} 16... Bxe4 {[%clk
0:02:42.9]} 17. Qa6 {[%clk 0:02:14.3]} 17... Qc8 {[%clk 0:02:32.3]} 18. Qxc8
{[%clk 0:02:01.6]} 18... Rxc8 {[%clk 0:02:34.2]} 19. Ba6 {[%clk 0:02:02.3]}
19... Rf8 {[%clk 0:02:00.7]} 20. Bb7 {[%clk 0:01:50.9]} 20... Bxf3 {[%clk
0:02:01]} 21. Bxc6 {[%clk 0:01:27.3]} 21... Nxc5 {[%clk 0:01:40.8]} 22. dxc5
{[%clk 0:01:15.2]} 22... Be2 {[%clk 0:01:37.1]} 23. Rc1 {[%clk 0:01:13.8]} 23...
Bc4 {[%clk 0:01:37.9]} 24. Bb7 {[%clk 0:01:08.5]} 24... e5 {[%clk 0:00:43.5]}
25. Bg5 {[%clk 0:01:01.7]} 25... f6 {[%clk 0:00:43.6]} 26. Bh4 {[%clk
0:01:02.5]} 26... Rf7 {[%clk 0:00:39.2]} 27. c6 {[%clk 0:00:49.4]} 27... Bf8
{[%clk 0:00:36.8]} 28. c7 {[%clk 0:00:28.9]} 28... Rxc7 {[%clk 0:00:30]} 29.
Bxd5+ {[%clk 0:00:29.9]} 29... Bxd5 {[%clk 0:00:27.5]} 30. Rxc7 {[%clk
0:00:30.7]} 30... g5 {[%clk 0:00:24.4]} 31. Bg3 {[%clk 0:00:30.6]} 31... Bf7
{[%clk 0:00:25]} 32. f3 {[%clk 0:00:27.9]} 32... Kg7 {[%clk 0:00:25.2]} 33. Bf2
{[%clk 0:00:26.6]} 33... h5 {[%clk 0:00:25.2]} 34. e4 {[%clk 0:00:27.4]} 34...
Kg6 {[%clk 0:00:25.7]} 35. Bc5 {[%clk 0:00:27.9]} 35... Bg7 {[%clk 0:00:22]} 36.
g4 {[%clk 0:00:28.9]} 36... hxg4 {[%clk 0:00:22.1]} 37. hxg4 {[%clk 0:00:29.8]}
37... Be6 {[%clk 0:00:21.1]} 38. Kf2 {[%clk 0:00:30.8]} 38... Bb3 {[%clk
0:00:20.6]} 39. Ke3 {[%clk 0:00:31.7]} 39... Bf7 {[%clk 0:00:21.4]} 40. Ra7
{[%clk 0:00:31.4]} 40... Bb3 {[%clk 0:00:22]} 41. Bd6 {[%clk 0:00:30.8]} 41...
Bc4 {[%clk 0:00:20.7]} 42. Rc7 {[%clk 0:00:30.8]} 42... Bb3 {[%clk 0:00:21.5]}
43. Rb7 {[%clk 0:00:31.7]} 43... Bc4 {[%clk 0:00:22.5]} 44. Rb6 {[%clk
0:00:32.5]} 44... Kf7 {[%clk 0:00:22.2]} 45. Kd2 {[%clk 0:00:32.7]} 45... Bf1
{[%clk 0:00:19.2]} 46. Rb7+ {[%clk 0:00:32.9]} 46... Kg6 {[%clk 0:00:19.5]} 47.
Rb8 {[%clk 0:00:32.1]} 47... Bg2 {[%clk 0:00:19.6]} 48. Ke3 {[%clk 0:00:32.4]}
48... Bf1 {[%clk 0:00:20.5]} 49. Bf8 {[%clk 0:00:32.4]} 49... Bxf8 {[%clk
0:00:19.9]} 50. Rxf8 {[%clk 0:00:32.3]} 50... Kg7 {[%clk 0:00:21.8]} 51. Rc8
{[%clk 0:00:32.4]} 51... Bb5 {[%clk 0:00:21]} 52. Rc5 {[%clk 0:00:32.7]} 52...
Ba6 {[%clk 0:00:21.1]} 53. Ra5 {[%clk 0:00:33]} 53... Bc4 {[%clk 0:00:21.7]} 54.
Kd2 {[%clk 0:00:34]} 54... Kg6 {[%clk 0:00:21.7]} 55. Ra3 {[%clk 0:00:32.6]}
55... Bb5 {[%clk 0:00:22.5]} 56. Kc3 {[%clk 0:00:33.7]} 56... Be2 {[%clk
0:00:23.3]} 57. Kb4 {[%clk 0:00:34.2]} 57... Bd1 {[%clk 0:00:18.2]} 58. Kc5
{[%clk 0:00:35.3]} 58... f5 {[%clk 0:00:19.5]} 59. exf5+ {[%clk 0:00:34.2]}
59... Kf6 {[%clk 0:00:20.4]} 60. Kd5 {[%clk 0:00:32.6]} 60... Be2 {[%clk
0:00:19.2]} 61. Rb3 {[%clk 0:00:29.2]} 61... e4 {[%clk 0:00:18.6]} 62. fxe4
{[%clk 0:00:28.6]} 62... Bxg4 {[%clk 0:00:19.3]} 63. Rb6+ {[%clk 0:00:29]} 63...
Kf7 {[%clk 0:00:20.4]} 64. Rg6 {[%clk 0:00:29.1]} 1-0